bitfinex-derivatives/quotes_BTCF0:USTF0_20250919
["timestamp","ask_amount","ask_price","bid_price","bid_amount"]
[1758302574001,3.10166453,115860.0,115850.0,0.56759553]
[1758302574697,3.10166453,115860.0,115850.0,0.58006461]
[1758302574898,3.10566453,115860.0,115850.0,0.58006461]
[1758302575087,3.10666453,115860.0,115850.0,0.49378861]
[1758302575406,3.10666453,115860.0,115850.0,0.5611731]
[1758302577305,3.10666453,115860.0,115850.0,0.22306834]
[1758302577306,3.11989453,115860.0,115850.0,0.22306834]
[1758302577509,3.11989453,115860.0,115850.0,0.5611731]
[1758302577797,3.1022397,115860.0,115850.0,0.5611731]
[1758302578302,3.1022397,115860.0,115850.0,0.45244833]
[1758302580201,3.0890097,115860.0,115850.0,0.45244833]
[1758302580506,3.0883697,115860.0,115850.0,0.53872433]
[1758302581806,3.0883697,115860.0,115850.0,0.45244833]
[1758302583803,2.2925297,115860.0,115850.0,0.11434357]
[1758302584005,3.0880897,115860.0,115850.0,0.45244833]
[1758302584697,3.1008197,115860.0,115850.0,0.45244833]
[1758302586403,3.43892446,115860.0,115850.0,0.45244833]
[1758302586604,4.02702922,115860.0,115850.0,0.07138449]
[1758302586809,3.68892446,115860.0,115850.0,0.07138449]
[1758302587810,4.02702922,115860.0,115850.0,0.07138449]
[1758302588104,4.04417137,115860.0,115850.0,0.07138449]
[1758302590814,4.05272887,115860.0,115850.0,0.07138449]
[1758302591515,3.70502661,115860.0,115850.0,0.07138449]
[1758302592317,4.04313137,115860.0,115850.0,0.07138449]
[1758302592818,4.05195616,115860.0,115850.0,0.07138449]
[1758302593012,4.04313137,115860.0,115850.0,0.07138449]
[1758302593412,4.04313137,115860.0,115850.0,0.09343449]
[1758302593413,2.57240185,115860.0,115850.0,0.09343449]
[1758302593619,3.70482661,115860.0,115850.0,0.07138449]
[1758302594313,3.70462661,115860.0,115850.0,0.07138449]
[1758302595414,2.91050661,115860.0,115850.0,0.09343449]
[1758302595609,3.70770661,115860.0,115850.0,0.09343449]
[1758302596618,3.70770661,115860.0,115850.0,0.07138449]
[1758302597019,3.70738661,115860.0,115850.0,0.07138449]
[1758302597817,4.04549137,115860.0,115850.0,0.07138449]
[1758302599321,3.79549137,115860.0,115850.0,0.07138449]
[1758302599621,4.04549137,115860.0,115850.0,0.07138449]
[1758302600417,4.04545137,115860.0,115850.0,0.07138449]
[1758302600616,3.24861137,115860.0,115850.0,0.07138449]
[1758302600822,4.04529137,115860.0,115850.0,0.07138449]
[1758302602125,4.04529137,115860.0,115850.0,0.004]
[1758302606326,0.0997339,115840.0,115830.0,0.12897364]
[1758302606526,1.97703866,115840.0,115830.0,0.12897364]
[1758302606714,1.97703866,115840.0,115830.0,0.02024887]
[1758302607416,1.97703866,115840.0,115830.0,0.09092386]
[1758302607727,1.18083866,115840.0,115830.0,0.09092386]
[1758302607930,1.97659866,115840.0,115830.0,0.09092386]
[1758302608223,1.97759866,115840.0,115830.0,0.09092386]
[1758302608419,1.18583866,115840.0,115830.0,0.10092386]
[1758302608725,1.98159866,115840.0,115830.0,0.10092386]
[1758302609224,1.18583866,115840.0,115830.0,0.10092386]
[1758302609425,1.98135866,115840.0,115830.0,0.10092386]
[1758302610225,1.98123866,115840.0,115830.0,0.10092386]
[1758302612020,1.18583866,115840.0,115830.0,0.10092386]
[1758302612225,1.98095866,115840.0,115830.0,0.10092386]
[1758302613219,1.18583866,115840.0,115830.0,0.10092386]
[1758302613428,1.98075866,115840.0,115830.0,0.10092386]
[1758302614428,1.98063866,115840.0,115830.0,0.10092386]
[1758302615722,2.31893684,115840.0,115830.0,0.10092386]
[1758302617230,2.31865684,115840.0,115830.0,0.10092386]
[1758302617423,1.52413684,115840.0,115830.0,0.10092386]
[1758302617729,2.31869684,115840.0,115830.0,0.10092386]
[1758302618623,2.31865684,115840.0,115830.0,0.10092386]
[1758302618930,0.8477339,115840.0,115830.0,0.10092386]
[1758302619117,1.52413684,115840.0,115830.0,0.10092386]
[1758302619323,2.31849684,115840.0,115830.0,0.10092386]
[1758302624232,1.52413684,115840.0,115830.0,0.10092386]
[1758302624735,2.31777684,115840.0,115830.0,0.10092386]
[1758302627835,2.32637544,115840.0,115830.0,0.10092386]
[1758302628835,2.32637544,115840.0,115830.0,0.08067499]
[1758302629338,2.34354664,115840.0,115830.0,0.08067499]
[1758302629836,2.13810811,115840.0,115830.0,1e-07]
[1758302630033,2.93146811,115840.0,115830.0,1e-07]
[1758302632527,2.93122811,115840.0,115830.0,1e-07]
[1758302632728,2.93130811,115840.0,115830.0,1e-07]
[1758302633936,2.13810811,115840.0,115830.0,1e-07]
[1758302634137,2.93126811,115840.0,115830.0,1e-07]
[1758302634332,2.93118811,115840.0,115830.0,1e-07]
[1758302637039,1.9165837,115840.0,115830.0,1e-07]
[1758302637342,2.93118811,115840.0,115830.0,1e-07]
[1758302638238,2.13810811,115840.0,115830.0,1e-07]
[1758302638429,2.12950951,115840.0,115830.0,1e-07]
[1758302638632,1.79130804,115840.0,115830.0,1e-07]
[1758302638933,2.58382804,115840.0,115830.0,1e-07]
[1758302639441,1.79130804,115840.0,115830.0,1e-07]
[1758302639630,2.58382804,115840.0,115830.0,1e-07]
[1758302639940,1.79130804,115840.0,115830.0,1e-07]
[1758302640135,2.58366804,115840.0,115830.0,1e-07]
[1758302640640,4.40234804,115840.0,115830.0,1e-07]
[1758302640838,3.60998804,115840.0,115830.0,1e-07]
[1758302641137,4.40222804,115840.0,115830.0,1e-07]
[1758302643140,4.40198804,115840.0,115830.0,1e-07]
[1758302649442,3.60998804,115840.0,115830.0,1e-07]
[1758302649742,4.40138804,115840.0,115830.0,1e-07]
[1758302654249,3.60998804,115840.0,115830.0,1e-07]
[1758302654445,4.40110804,115840.0,115830.0,1e-07]
[1758302661853,4.06290657,115840.0,115830.0,1e-07]
[1758302664446,4.40110804,115840.0,115830.0,1e-07]
[1758302666756,4.38393684,115840.0,115830.0,1e-07]
[1758302671056,2.9164139,115840.0,115830.0,1e-07]
[1758302671256,4.38213684,115840.0,115830.0,1e-07]
[1758302675761,4.04394489,115840.0,115830.0,1e-07]
[1758302679266,3.79394489,115840.0,115830.0,1e-07]
[1758302681573,3.4557339,115840.0,115830.0,1e-07]
[1758302681869,3.79394489,115840.0,115830.0,1e-07]
[1758302691879,4.13215588,115840.0,115830.0,1e-07]
[1758302692081,0.1208414,115830.0,115820.0,0.06937285]
[1758302692271,1.17573967,115830.0,115820.0,0.06927285]
[1758302692471,0.1225589,115820.0,115810.0,0.10882477]
[1758302692675,1.60956989,115820.0,115810.0,0.10872477]
[1758302693385,1.60956989,115820.0,115810.0,0.10398297]
[1758302693778,0.1225664,115810.0,115800.0,0.06948148]
[1758302693984,0.82157739,115810.0,115800.0,0.06938148]
[1758302694281,0.1225738,115800.0,115790.0,0.02998279]
[1758302694468,1.60982479,115800.0,115790.0,0.02988279]
[1758302694873,1.2716138,115800.0,115790.0,0.02988279]
[1758302695180,1.60982479,115800.0,115790.0,0.02988279]
[1758302695577,1.61082479,115800.0,115790.0,0.02988279]
[1758302696182,1.61682479,115800.0,115790.0,0.02988279]
[1758302697179,1.61682479,115800.0,115790.0,0.00861279]
[1758302697380,0.1225813,115790.0,115780.0,0.02137]
[1758302697579,0.4833813,115790.0,115780.0,0.02127]
[1758302697983,0.4833813,115790.0,115780.0,0.09113995]
[1758302698186,0.4833813,115790.0,115780.0,0.02127]
[1758302698484,0.4853813,115790.0,115780.0,0.02127]
[1758302698884,0.4913813,115790.0,115780.0,0.02127]
[1758302699385,0.4913813,115790.0,115780.0,0.02992622]
[1758302699681,0.4551213,115790.0,115780.0,0.04307622]
[1758302699888,0.4551213,115790.0,115780.0,0.71761591]
[1758302699889,1.2430013,115790.0,115780.0,0.71761591]
[1758302700188,0.02919,115790.0,115780.0,0.71761591]
[1758302700585,0.80848,115790.0,115780.0,1.07841591]
[1758302700978,0.008,115790.0,115780.0,1.07841591]
[1758302701175,0.008,115790.0,115780.0,1.4166269]
[1758302701580,0.008,115790.0,115780.0,1.57196286]
[1758302701982,0.4471029,115820.0,115810.0,0.01315]
[1758302702177,0.4682929,115820.0,115810.0,0.39401656]
[1758302702383,1.2686529,115820.0,115810.0,0.39401656]
[1758302703392,1.2696529,115820.0,115810.0,0.39401656]
[1758302703988,1.2746529,115820.0,115810.0,0.48432306]
[1758302704392,0.4742929,115820.0,115810.0,0.48432306]
[1758302704580,0.38799,115820.0,115810.0,0.48432306]
[1758302704892,0.006,115820.0,115810.0,1.09512306]
[1758302705193,0.8062,115820.0,115810.0,1.09512306]
[1758302711487,0.006,115820.0,115810.0,1.09512306]
[1758302711687,0.80528,115820.0,115810.0,1.09512306]
[1758302713489,0.80504,115820.0,115810.0,1.09512306]
[1758302715095,0.8913391,115820.0,115810.0,1.09512306]
[1758302715597,0.9125291,115820.0,115810.0,0.84512306]
[1758302715796,1.2733291,115820.0,115810.0,0.48432306]
[1758302716700,1.2870091,115820.0,115810.0,0.14611217]
[1758302717098,1.2733291,115820.0,115810.0,0.48432316]
[1758302717399,1.2733291,115820.0,115810.0,0.14611217]
[1758302717699,1.2733291,115820.0,115810.0,0.48432316]
[1758302719693,1.2733291,115820.0,115810.0,0.14611217]
[1758302722900,1.2733291,115820.0,115810.0,0.48432316]
[1758302723403,1.2720491,115820.0,115810.0,0.48432316]
[1758302725411,0.4742891,115820.0,115810.0,0.48432316]
[1758302726001,1.2716091,115820.0,115810.0,0.48432316]
[1758302728402,1.2716091,115820.0,115810.0,0.5927147]
[1758302728609,1.2713691,115820.0,115810.0,0.5927147]
[1758302728906,0.4742891,115820.0,115810.0,0.5927147]
[1758302729113,1.2713291,115820.0,115810.0,0.5927147]
[1758302729612,1.2713291,115820.0,115810.0,0.48432316]
[1758302731813,1.2713291,115820.0,115810.0,0.48432286]
[1758302733710,1.2713291,115820.0,115810.0,0.59293807]
[1758302737708,1.2713291,115820.0,115810.0,0.25472708]
[1758302737906,1.2713291,115820.0,115810.0,0.59290021]
[1758302739916,1.2713291,115820.0,115810.0,0.484285]
[1758302740617,1.2713291,115820.0,115810.0,0.05980557]
[1758302740803,1.62236223,115820.0,115810.0,0.3848287]
[1758302741212,1.62236223,115820.0,115810.0,0.04665557]
[1758302741410,1.62236223,115820.0,115810.0,0.3848287]
[1758302741718,1.62236223,115820.0,115810.0,0.4711352]
[1758302743311,1.2841891,115820.0,115810.0,0.4840252]
[1758302743615,1.2699691,115820.0,115810.0,0.4840252]
[1758302743916,0.4742891,115820.0,115810.0,0.4840252]
[1758302744118,1.2699291,115820.0,115810.0,0.4840252]
[1758302744310,0.4742891,115820.0,115810.0,0.4840252]
[1758302744509,1.2698891,115820.0,115810.0,0.4840252]
[1758302744711,0.82271,115820.0,115810.0,1.18299833]
[1758302745116,0.006,115820.0,115810.0,1.18299833]
[1758302745420,0.80152,115820.0,115810.0,1.18299833]
[1758302747318,0.80152,115820.0,115810.0,1.36179833]
[1758302749421,0.80152,115820.0,115810.0,0.68545207]
[1758302749720,0.80152,115820.0,115810.0,1.36179833]
[1758302749916,0.006,115820.0,115810.0,1.36179833]
[1758302750322,0.801,115820.0,115810.0,1.54172221]
[1758302751119,0.801,115820.0,115810.0,1.43299833]
[1758302751320,0.801,115820.0,115810.0,1.54171702]
[1758302751726,0.8872991,115820.0,115810.0,1.54171702]
[1758302752116,0.8872991,115820.0,115810.0,1.43299833]
[1758302753422,0.801,115820.0,115810.0,1.43299833]
[1758302757129,0.801,115820.0,115810.0,0.75665207]
[1758302757327,0.801,115820.0,115810.0,1.43299833]
[1758302758529,0.801,115820.0,115810.0,1.58833429]
[1758302759321,0.801,115820.0,115810.0,1.76713429]
[1758302760633,0.006,115820.0,115810.0,1.76713429]
[1758302763339,0.0922991,115820.0,115810.0,1.76713429]
[1758302764142,0.0922991,115820.0,115810.0,1.7376057]
[1758302768238,0.0922991,115820.0,115810.0,1.06125944]
[1758302768440,0.0922991,115820.0,115810.0,1.7376057]
[1758302771632,0.0922991,115820.0,115810.0,1.5588057]
[1758302772638,0.0922991,115820.0,115810.0,0.88245944]
[1758302772835,0.1146491,115820.0,115810.0,0.6353972]
[1758302773140,0.1275291,115820.0,115810.0,0.6353972]
[1758302773340,0.1275291,115820.0,115810.0,0.6225072]
[1758302775838,0.4883291,115820.0,115810.0,0.6225072]
[1758302776738,1.2804091,115820.0,115810.0,0.6225072]
[1758302777036,0.4883291,115820.0,115810.0,0.6225072]
[1758302777236,1.2801691,115820.0,115810.0,0.6225072]
[1758302777937,1.2801691,115820.0,115810.0,0.46717124]
[1758302778740,1.2801691,115820.0,115810.0,1.87717124]
[1758302779242,1.2801691,115820.0,115810.0,1.79086454]
[1758302779539,0.4883291,115820.0,115810.0,1.87717134]
[1758302779940,0.4883291,115820.0,115810.0,2.21534447]
[1758302780148,0.4883291,115820.0,115810.0,2.22830447]
[1758302780446,1.2798891,115820.0,115810.0,2.22830447]
[1758302780648,1.2669691,115820.0,115810.0,2.22830447]
[1758302781151,1.2669691,115820.0,115810.0,2.38364043]
[1758302781344,1.2798491,115820.0,115810.0,2.38364043]
[1758302783539,1.2798491,115820.0,115810.0,2.22830447]
[1758302784134,1.2798491,115820.0,115810.0,2.21534427]
[1758302784750,1.2798491,115820.0,115810.0,1.45269141]
[1758302785049,1.2798491,115820.0,115810.0,1.79086454]
[1758302785246,1.61802223,115820.0,115810.0,1.79086454]
[1758302785449,1.86802223,115820.0,115810.0,0.38086454]
[1758302785838,1.86802223,115820.0,115810.0,1.79086454]
[1758302786245,1.86802223,115820.0,115810.0,0.38086454]
[1758302786746,1.5298491,115820.0,115810.0,1.79086454]
[1758302786942,1.86802223,115820.0,115810.0,1.79086454]
[1758302789747,1.86802223,115820.0,115810.0,1.79034162]
[1758302790458,2.20619536,115820.0,115810.0,1.45216849]
[1758302790755,1.86802223,115820.0,115810.0,1.79034162]
[1758302791053,1.86802223,115820.0,115810.0,1.76812162]
[1758302791054,2.20619536,115820.0,115810.0,1.76812162]
[1758302791446,1.86802223,115820.0,115810.0,1.42994849]
[1758302791647,1.86802223,115820.0,115810.0,1.76812162]
[1758302793362,1.86802223,115820.0,115810.0,1.74817313]
[1758302793656,1.07650223,115820.0,115810.0,1.74817313]
[1758302793856,1.86726223,115820.0,115810.0,1.76863681]
[1758302795556,1.07650223,115820.0,115810.0,1.76863681]
[1758302795857,1.86706223,115820.0,115810.0,1.76863681]
[1758302796053,1.07650223,115820.0,115810.0,1.76863681]
[1758302796253,1.86706223,115820.0,115810.0,1.76863681]
[1758302797357,1.86706223,115820.0,115810.0,0.38136681]
[1758302797756,1.86714879,115820.0,115810.0,0.04319368]
[1758302797952,1.86706879,115820.0,115810.0,0.04319368]
[1758302799261,0.82658879,115820.0,115810.0,0.04319368]
[1758302799458,0.4883291,115820.0,115810.0,0.38145337]
[1758302799659,1.2784891,115820.0,115810.0,0.38145337]
[1758302805062,0.4883291,115820.0,115810.0,0.38145337]
[1758302805255,1.2780491,115820.0,115810.0,0.38145337]
[1758302806864,1.2778891,115820.0,115810.0,0.38145337]
[1758302808066,0.4883291,115820.0,115810.0,0.38145337]
[1758302808368,1.2778091,115820.0,115810.0,0.38145337]
[1758302812778,1.2778091,115820.0,115800.0,1.99606789]
[1758302812779,0.0996054,115810.0,115800.0,1.90975969]
[1758302812981,0.0996054,115810.0,115800.0,1.90965969]
[1758302813182,0.0996054,115810.0,115800.0,1.99597249]
[1758302814086,0.8900854,115810.0,115800.0,1.99597249]
[1758302815281,0.8950854,115810.0,115800.0,1.99697249]
[1758302820382,0.1056054,115810.0,115800.0,1.99697249]
[1758302820583,0.8950854,115810.0,115800.0,1.99697249]
[1758302821281,0.9178354,115810.0,115800.0,0.61008249]
[1758302821484,0.4891554,115810.0,115800.0,0.61008329]
[1758302821779,1.2786354,115810.0,115800.0,0.61008329]
[1758302821985,0.4891554,115810.0,115800.0,0.61008329]
[1758302822671,1.2786354,115810.0,115800.0,0.61008329]
[1758302824189,0.4891554,115810.0,115800.0,0.61008329]
[1758302824385,1.2786354,115810.0,115800.0,0.61008329]
[1758302827094,0.4891554,115810.0,115800.0,0.61008329]
[1758302827482,1.2785954,115810.0,115800.0,0.61008329]
[1758302828187,0.4891554,115810.0,115800.0,0.61008329]
[1758302828389,1.2785954,115810.0,115800.0,0.61008329]
[1758302832789,1.2785954,115810.0,115800.0,0.18551]
[1758302832996,1.2785954,115810.0,115800.0,0.61008329]
[1758302833287,1.2785554,115810.0,115800.0,0.61008329]
[1758302833788,0.4891554,115810.0,115800.0,0.61008329]
[1758302834189,1.2785554,115810.0,115800.0,0.94834298]
[1758302836489,0.4891554,115810.0,115800.0,0.94834298]
[1758302836786,1.2785154,115810.0,115800.0,0.94834298]
[1758302836982,0.4891554,115810.0,115800.0,0.96208298]
[1758302837181,1.2652154,115810.0,115800.0,0.96208298]
[1758302839397,1.2791954,115810.0,115800.0,0.52376969]
[1758302839697,1.2791954,115810.0,115800.0,0.02411]
[1758302839890,1.2791954,115810.0,115800.0,0.36236969]
[1758302840195,1.2791954,115810.0,115800.0,0.02411]
[1758302840494,1.2791954,115810.0,115800.0,0.36236969]
[1758302846498,1.2791954,115810.0,115800.0,0.02411]
[1758302846692,1.2791954,115810.0,115800.0,0.36236969]
[1758302850899,1.86745509,115810.0,115800.0,0.001]
[1758302853899,1.5291954,115810.0,115800.0,0.001]
[1758302854096,1.86745509,115810.0,115800.0,0.001]
[1758302859409,1.61745509,115810.0,115800.0,0.001]
[1758302859809,1.61758368,115810.0,115800.0,0.001]
[1758302860910,3.43654368,115810.0,115800.0,0.001]
[1758302869014,3.79734368,115810.0,115800.0,0.001]
[1758302870117,3.00798368,115810.0,115800.0,0.001]
[1758302870309,3.4587954,115810.0,115800.0,0.33938828]
[1758302870505,3.79718368,115810.0,115800.0,0.33938828]
[1758302871518,3.79718368,115810.0,115800.0,0.001]
[1758302871719,3.00798368,115810.0,115800.0,0.33938828]
[1758302871917,2.6695954,115810.0,115800.0,0.33938828]
[1758302872119,3.79718368,115810.0,115800.0,0.33938828]
[1758302872310,3.79714368,115810.0,115800.0,0.33938828]
[1758302873220,3.00798368,115810.0,115800.0,0.33938828]
[1758302873420,3.00798368,115810.0,115800.0,0.36142828]
[1758302873914,3.79714368,115810.0,115800.0,0.36142828]
[1758302874723,3.79714368,115810.0,115800.0,0.33938828]
[1758302875114,3.00798368,115810.0,115800.0,0.36270828]
[1758302875520,3.79714368,115810.0,115800.0,0.36270828]
[1758302875833,3.79714368,115810.0,115800.0,0.33938828]
[1758302877329,3.79714368,115810.0,115800.0,0.36270828]
[1758302878835,3.79710368,115810.0,115800.0,0.36270828]
[1758302880228,3.79710368,115810.0,115800.0,0.001]
[1758302880431,3.4587154,115810.0,115800.0,0.70088656]
[1758302881129,3.4587154,115810.0,115800.0,0.02411]
[1758302881434,3.79710368,115810.0,115800.0,0.70088656]
[1758302881830,3.79710368,115810.0,115800.0,0.36249828]
[1758302882334,3.79710368,115810.0,115800.0,0.70088656]
[1758302882539,3.79710368,115810.0,115800.0,0.33938828]
[1758302886939,3.79710368,115810.0,115800.0,0.36249828]
[1758302887435,3.79710368,115810.0,115800.0,0.001]
[1758302887741,3.79710368,115810.0,115800.0,0.33938828]
[1758302892844,3.79710368,115810.0,115800.0,0.44815672]
[1758302893547,3.79710368,115810.0,115800.0,0.10976844]
[1758302893737,3.79710368,115810.0,115800.0,0.44815672]
[1758302894944,3.79686368,115810.0,115800.0,0.47126672]
[1758302900451,3.4584754,115810.0,115800.0,0.13287844]
[1758302900651,3.79686368,115810.0,115800.0,0.47126672]
[1758302901452,3.00798368,115810.0,115800.0,0.47126672]
[1758302901641,2.6695954,115810.0,115800.0,0.809655]
[1758302901849,3.4583954,115810.0,115800.0,1.059655]
[1758302902044,2.6695954,115810.0,115800.0,1.059655]
[1758302902241,3.4583954,115810.0,115800.0,1.059655]
[1758302902846,3.4583954,115810.0,115800.0,1.03720056]
[1758302904055,1.6394354,115810.0,115800.0,1.03720056]
[1758302904450,0.8506354,115810.0,115800.0,1.03720056]
[1758302904753,1.6393954,115810.0,115800.0,1.03720056]
[1758302906969,1.6393954,115810.0,115800.0,0.95088656]
[1758302907353,1.97778368,115810.0,115800.0,0.58938828]
[1758302907563,1.97778368,115810.0,115800.0,0.61267828]
[1758302910270,1.97778368,115810.0,115800.0,0.95106656]
[1758302911267,1.97778368,115810.0,115800.0,0.61267828]
[1758302911457,1.97778368,115810.0,115800.0,0.27429]
[1758302911763,1.97778368,115810.0,115800.0,0.58938828]
[1758302912759,1.97778368,115810.0,115800.0,0.69815672]
[1758302915768,1.6393954,115810.0,115800.0,0.69815672]
[1758302915963,1.97778368,115810.0,115800.0,0.72144672]
[1758302916568,1.97778368,115810.0,115800.0,0.69815672]
[1758302918373,1.97778368,115810.0,115800.0,0.72144672]
[1758302919274,1.97778368,115810.0,115800.0,0.47144672]
[1758302920071,1.97778368,115810.0,115800.0,0.44815672]
[1758302921772,1.6393954,115810.0,115800.0,0.10976844]
[1758302921977,1.6393954,115810.0,115800.0,0.44806443]
[1758302922683,1.6393954,115810.0,115800.0,0.47135443]
[1758302924878,1.6393954,115810.0,115800.0,0.44806443]
[1758302926278,1.6393954,115810.0,115800.0,0.47135443]
[1758302928074,1.6393954,115810.0,115800.0,0.44806443]
[1758302929783,1.6393954,115810.0,115800.0,0.47135443]
[1758302931583,1.6393954,115810.0,115800.0,0.36258599]
[1758302932685,0.8506354,115810.0,115800.0,0.36258599]
[1758302932886,1.6388754,115810.0,115800.0,0.36258599]
[1758302933785,0.8506354,115810.0,115800.0,0.36258599]
[1758302933990,1.6388354,115810.0,115800.0,0.36258599]
[1758302934377,0.8506354,115810.0,115800.0,0.36258599]
[1758302934683,1.6388354,115810.0,115800.0,0.44889999]
[1758302934989,0.8506354,115810.0,115800.0,0.44889999]
[1758302935385,1.6388354,115810.0,115800.0,0.44889999]
[1758302937488,0.8506354,115810.0,115800.0,0.80045598]
[1758302937686,1.6248154,115810.0,115800.0,0.90924868]
[1758302938686,1.2640154,115810.0,115800.0,0.90924868]
[1758302939885,1.2774154,115810.0,115800.0,0.90924868]
[1758302940385,1.2774154,115810.0,115800.0,0.47137869]
[1758302941986,1.2774154,115810.0,115800.0,0.44890009]
[1758302942489,1.2774154,115810.0,115800.0,0.36258599]
[1758302944787,1.2774154,115810.0,115800.0,0.55769279]
[1758302946288,1.2773354,115810.0,115800.0,0.55769279]
[1758302950491,0.83023,115810.0,115800.0,0.55769279]
[1758302950694,0.02875,115810.0,115800.0,0.90982878]
[1758302950990,0.8803467,115810.0,115800.0,0.90982878]
[1758302951190,0.9023967,115810.0,115800.0,0.80103608]
[1758302951582,0.81609,115810.0,115800.0,0.95637204]
[1758302952889,0.79404,115810.0,115800.0,0.95637204]
[1758302953093,0.81609,115810.0,115800.0,0.95637204]
[1758302954594,0.79404,115810.0,115800.0,0.95637204]
[1758302954988,0.79404,115810.0,115800.0,1.31717204]
[1758302955194,0.006,115810.0,115800.0,1.56717204]
[1758302955400,0.794,115810.0,115800.0,1.56717204]
[1758302957496,0.006,115810.0,115800.0,1.56717204]
[1758302960797,0.006,115810.0,115800.0,1.74597204]
[1758302960993,0.80510114,115820.0,115810.0,0.2417067]
[1758302961199,0.80510114,115820.0,115810.0,0.97583269]
[1758302961890,0.78792,115830.0,115820.0,0.0993792]
[1758302962094,0.80997,115830.0,115820.0,0.9057996]
[1758302962403,0.80997,115830.0,115820.0,0.56750361]
[1758302962699,0.02205,115830.0,115820.0,0.56750361]
[1758302962902,1.2710599,115840.0,115830.0,0.1226318]
[1758302963104,1.2710599,115840.0,115830.0,0.46092779]
[1758302964697,1.2710599,115840.0,115830.0,0.53014635]
[1758302965001,1.2760599,115840.0,115830.0,0.54014635]
[1758302967495,1.2760599,115840.0,115830.0,0.52688635]
[1758302970905,1.2760599,115840.0,115830.0,0.53571108]
[1758302973701,0.9152599,115840.0,115830.0,0.53571108]
[1758302973906,1.2760599,115840.0,115830.0,0.53571108]
[1758302976608,0.4881799,115840.0,115830.0,0.53571108]
[1758302976799,0.9150599,115840.0,115830.0,0.89651108]
[1758302977409,0.9150599,115840.0,115830.0,0.87400707]
[1758302979011,0.9150599,115840.0,115830.0,0.53571108]
[1758302979909,0.9150599,115840.0,115830.0,0.6442395]
[1758302980806,0.9150599,115840.0,115830.0,0.98253549]
[1758302981709,0.9150599,115840.0,115830.0,0.6442395]
[1758302981913,0.9150599,115840.0,115830.0,0.98201969]
[1758302983020,0.1273799,115840.0,115830.0,0.99527969]
[1758302983222,0.9020999,115840.0,115830.0,1.0151787]
[1758302983517,0.9020999,115840.0,115830.0,0.90665028]
[1758302987615,0.81581,115840.0,115830.0,1.26745028]
[1758302987814,0.81581,115840.0,115830.0,1.37610888]
[1758302988118,0.79252,115840.0,115830.0,1.37610888]
[1758302988613,0.79252,115840.0,115830.0,1.85548837]
[1758302989018,0.79252,115840.0,115830.0,1.51745028]
[1758302992322,0.9155743,115840.0,115830.0,0.578114]
[1758302992622,1.25361239,115840.0,115830.0,0.46906039]
[1758302992818,1.25361239,115840.0,115830.0,0.57771713]
[1758302993823,0.9155743,115840.0,115830.0,0.66400883]
[1758302994517,0.9155743,115840.0,115830.0,0.67726883]
[1758302994824,0.1280543,115840.0,115830.0,0.67726883]
[1758302995123,0.9154543,115840.0,115830.0,0.67726883]
[1758302997317,0.82917,115840.0,115830.0,0.67726883]
[1758302998122,0.82917,115840.0,115830.0,0.56861209]
[1758302998323,0.9154543,115840.0,115830.0,0.56861209]
[1758303000221,0.9154543,115840.0,115830.0,0.55535209]
[1758303001324,0.9154543,115840.0,115830.0,0.46906039]
[1758303004123,1.25349239,115840.0,115830.0,0.46906039]
[1758303004418,0.9154543,115840.0,115830.0,0.46906039]
[1758303005029,0.9154543,115840.0,115830.0,0.1310223]
[1758303005231,1.63195965,115840.0,115830.0,0.46906039]
[1758303006929,1.63195965,115840.0,115830.0,0.62439635]
[1758303007531,0.84455965,115840.0,115830.0,0.71068795]
[1758303007729,1.63175965,115840.0,115830.0,0.55535199]
[1758303008030,1.63175965,115840.0,115830.0,0.46906039]
[1758303008532,1.29372156,115840.0,115830.0,0.62439635]
[1758303008732,1.63175965,115840.0,115830.0,0.62439635]
[1758303010423,2.21979774,115840.0,115830.0,0.28635826]
[1758303010625,2.21979774,115840.0,115830.0,0.35210659]
[1758303010930,2.21979774,115840.0,115830.0,0.08804329]
[1758303011129,2.21979774,115840.0,115830.0,0.42608138]
[1758303011836,2.21975774,115840.0,115830.0,0.42608138]
[1758303012433,2.21975774,115840.0,115830.0,0.08804329]
[1758303012834,2.21975774,115840.0,115830.0,0.42608138]
[1758303013332,2.21975774,115840.0,115830.0,0.53480872]
[1758303015634,1.43259774,115840.0,115830.0,0.53480872]
[1758303015835,1.09455965,115840.0,115830.0,0.53480872]
[1758303016034,1.88167965,115840.0,115830.0,0.55761872]
[1758303016537,1.52087965,115840.0,115830.0,0.55761872]
[1758303016839,0.93284156,115840.0,115830.0,1.34274851]
[1758303017327,0.93284156,115840.0,115830.0,1.23402117]
[1758303018529,0.04587726,115840.0,115830.0,1.24715117]
[1758303018735,0.83299726,115840.0,115830.0,1.49715117]
[1758303021334,0.93286146,115840.0,115830.0,1.48402117]
[1758303021631,0.93286146,115840.0,115830.0,1.14598308]
[1758303024439,0.93278146,115840.0,115830.0,1.14598308]
[1758303025039,0.14574146,115840.0,115830.0,1.14598308]
[1758303025338,0.93274146,115840.0,115830.0,1.14598308]
[1758303025538,0.14574146,115840.0,115830.0,1.14598308]
[1758303025838,0.93274146,115840.0,115830.0,1.48402117]
[1758303029538,0.93274146,115840.0,115830.0,1.39772947]
[1758303029739,1.27077955,115840.0,115830.0,0.72165329]
[1758303029935,1.60881764,115840.0,115830.0,0.08804329]
[1758303030440,1.52077955,115840.0,115830.0,0.42608138]
[1758303031034,1.52077955,115840.0,115830.0,0.44913138]
[1758303031543,1.52069955,115840.0,115830.0,0.11109329]
[1758303031733,1.52069955,115840.0,115830.0,0.42608138]
[1758303031933,1.88149955,115840.0,115830.0,0.42608138]
[1758303032127,1.88149955,115840.0,115830.0,0.44913138]
[1758303033140,1.88149955,115840.0,115830.0,0.42608138]
[1758303033636,1.09457955,115840.0,115830.0,0.42608138]
[1758303033829,1.88149955,115840.0,115830.0,0.44913138]
[1758303035245,1.09457955,115840.0,115830.0,0.44913138]
[1758303035442,1.88149955,115840.0,115830.0,0.44913138]
[1758303035641,1.09457955,115840.0,115830.0,0.11109329]
[1758303035839,1.09457955,115840.0,115830.0,0.44913138]
[1758303036145,1.88145955,115840.0,115830.0,0.44913138]
[1758303036445,1.54342146,115840.0,115830.0,0.53542308]
[1758303037845,1.54342146,115840.0,115830.0,0.44913138]
[1758303038638,0.75654146,115840.0,115830.0,0.44913138]
[1758303038838,1.54342146,115840.0,115830.0,0.44913138]
[1758303039344,1.29342146,115840.0,115830.0,0.44913138]
[1758303040547,0.50654146,115840.0,115830.0,0.44913138]
[1758303040848,1.29342146,115840.0,115830.0,0.44913138]
[1758303043846,1.29342146,115840.0,115830.0,0.44916006]
[1758303044549,0.50654146,115840.0,115830.0,0.53545176]
[1758303044750,1.29338146,115840.0,115830.0,0.53545176]
[1758303044933,1.29338146,115840.0,115830.0,0.19738499]
[1758303045134,1.29338146,115840.0,115830.0,0.44916006]
[1758303048645,1.29338146,115840.0,115830.0,0.11109329]
[1758303048847,1.29338146,115840.0,115830.0,0.44916006]
[1758303049446,1.63144823,115840.0,115830.0,0.08804329]
[1758303051855,1.63144823,115840.0,115830.0,0.11109329]